bitfinex-derivatives/quotes_SOLF0:USTF0_20250211
["timestamp","ask_amount","ask_price","bid_price","bid_amount"]
[1739284774464,21.77351696,199.19,199.02,21.77351696]
[1739284775062,0.03190713,199.12,199.02,21.77351696]
[1739284775460,5.0228,199.07,199.01,5.024]
[1739284775960,0.03814564,199.06,199.01,5.024]
[1739284776461,0.03814564,199.06,198.99,21.77351696]
[1739284776663,5.06114564,199.06,199.0,5.0243]
[1739284777353,5.0231,199.05,199.0,5.0243]
[1739284778565,5.0231,199.05,198.99,21.77351696]
[1739284778863,5.0239,199.02,198.96,21.77351696]
[1739284779267,0.03342746,199.01,198.96,21.77351696]
[1739284779566,1.5118,199.12,198.96,21.77351696]
[1739284779865,1.5118,199.12,198.98,5.0246]
[1739284780066,5.0236,199.03,198.98,5.0246]
[1739284780461,0.0317433,199.06,198.96,21.77351696]
[1739284780667,5.0232,199.05,198.99,5.0245]
[1739284780871,0.03793142,199.03,198.99,5.0245]
[1739284781069,5.0223,199.09,198.99,5.0245]
[1739284781367,0.03412325,199.03,198.99,5.0245]
[1739284781567,1.5118,199.12,198.99,5.0245]
[1739284782068,0.03600291,199.07,198.99,5.0245]
[1739284782573,5.0234,199.04,198.98,5.0248]
[1739284782769,1.5118,199.12,198.98,5.0248]
[1739284783066,1.5118,199.12,198.96,21.77351696]
[1739284783067,0.03381698,199.03,198.96,21.77351696]
[1739284783266,0.03361469,199.01,198.99,5.0246]
[1739284783667,0.03361469,199.01,199.0,5.0243]
[1739284784871,0.03361469,199.01,198.99,5.0245]
[1739284786372,0.03361469,199.01,198.96,21.77351696]
[1739284786568,0.03361469,199.01,199.0,5.0243]
[1739284789175,0.03361469,199.01,198.93,21.77351696]
[1739284790878,0.03361469,199.01,198.98,5.0246]
[1739284791077,0.03361469,199.01,198.93,21.77351696]
[1739284791779,0.03361469,199.01,198.97,13.62703946]
[1739284792378,15.13883946,199.12,199.0,13.62703946]
[1739284792780,5.0228,199.06,199.02,5.0237]
[1739284793081,15.13883946,199.12,199.0,13.62703946]
[1739284793381,5.0218,199.1,199.0,13.62703946]
[1739284793572,0.03835315,199.08,199.04,0.03361469]
[1739284793776,0.03835315,199.08,199.06,5.0227]
[1739284793978,0.03835315,199.08,199.04,0.03361469]
[1739284794174,0.03835315,199.08,199.04,5.05671469]
[1739284794380,0.03835315,199.08,199.04,0.03361469]
[1739284795783,0.03835315,199.08,199.04,5.05671469]
[1739284795984,0.03835315,199.08,199.04,0.03361469]
[1739284796482,5.0226,199.07,199.04,0.03361469]
[1739284797386,5.023,199.06,199.04,0.03361469]
[1739284797684,0.03835315,199.08,199.04,0.03361469]
[1739284797889,5.023,199.06,199.04,0.03361469]
[1739284798291,0.03835315,199.08,199.04,0.03361469]
[1739284798785,5.06085315,199.08,199.04,0.03361469]
[1739284798986,0.03835315,199.08,199.04,0.03361469]
[1739284799386,5.0226,199.07,199.04,0.03361469]
[1739284799685,0.03835315,199.08,199.04,0.03361469]
[1739284800078,5.0228,199.07,199.04,0.03361469]
[1739284800278,0.03835315,199.08,199.04,0.03361469]
[1739284800482,0.03835315,199.08,199.06,5.0228]
[1739284800683,0.03835315,199.08,199.04,0.03361469]
[1739284801085,5.0226,199.07,199.04,0.03361469]
[1739284801281,0.03835315,199.08,199.04,0.03361469]
[1739284801488,5.0231,199.05,199.04,0.03361469]
[1739284804586,0.03835315,199.08,199.04,0.03361469]
[1739284804792,5.0229,199.06,199.04,0.03361469]
[1739284804991,0.03835315,199.08,199.04,0.03361469]
[1739284805891,5.0229,199.06,199.04,0.03361469]
[1739284806393,0.03835315,199.08,199.04,0.03361469]
[1739284807190,5.0226,199.07,199.04,0.03361469]
[1739284807496,0.03835315,199.08,199.04,0.03361469]
[1739284807895,0.03835315,199.08,199.05,5.0228]
[1739284808693,0.03835315,199.08,199.04,0.03361469]
[1739284809097,0.03835315,199.08,199.07,5.0226]
[1739284810099,5.315e-05,199.08,199.07,5.0226]
[1739284810690,5.315e-05,199.08,199.06,5.0226]
[1739284810890,5.315e-05,199.08,199.04,0.03361469]
[1739284811998,5.315e-05,199.08,199.07,5.0226]
[1739284813803,5.315e-05,199.08,199.04,5.05671469]
[1739284814000,5.315e-05,199.08,199.04,0.03361469]
[1739284814495,5.315e-05,199.08,199.06,5.0226]
[1739284815702,5.315e-05,199.08,199.07,5.0226]
[1739284816592,5.315e-05,199.08,199.04,0.03361469]
[1739284816794,5.315e-05,199.08,199.05,5.023]
[1739284816995,5.315e-05,199.08,199.04,0.03361469]
[1739284817194,5.0227,199.07,199.04,0.03361469]
[1739284817396,5.315e-05,199.08,199.04,0.03361469]
[1739284817801,5.315e-05,199.08,199.06,5.0228]
[1739284818304,5.0226,199.07,199.04,0.03361469]
[1739284819102,5.02235315,199.08,199.04,0.03361469]
[1739284819607,5.02235315,199.08,199.04,5.05691469]
[1739284820701,5.02235315,199.08,199.04,0.03361469]
[1739284820906,5.0231,199.05,199.04,0.03361469]
[1739284821805,5.315e-05,199.08,199.04,0.03361469]
[1739284821806,5.0228,199.06,199.04,0.03361469]
[1739284822011,5.315e-05,199.08,199.04,0.03361469]
[1739284822807,5.0228,199.07,199.04,0.03361469]
[1739284823408,5.02245315,199.08,199.04,5.05691469]
[1739284823612,5.315e-05,199.08,199.04,0.03361469]
[1739284824513,5.315e-05,199.08,199.06,5.0226]
[1739284824713,5.315e-05,199.08,199.04,0.03361469]
[1739284825114,5.315e-05,199.08,199.05,5.023]
[1739284825315,5.315e-05,199.08,199.04,0.03361469]
[1739284825614,5.315e-05,199.08,199.06,5.0226]
[1739284826517,5.315e-05,199.08,199.04,0.03361469]
[1739284826518,5.315e-05,199.08,199.04,5.05671469]
[1739284826715,5.315e-05,199.08,199.04,0.03361469]
[1739284827016,5.315e-05,199.08,199.05,5.0231]
[1739284827215,5.315e-05,199.08,199.04,0.03361469]
[1739284829115,5.315e-05,199.08,199.05,5.023]
[1739284830819,5.315e-05,199.08,199.06,5.0226]
[1739284832517,5.315e-05,199.08,199.04,0.03361469]
[1739284832713,5.315e-05,199.08,199.05,5.023]
[1739284833416,5.315e-05,199.08,199.06,5.0227]
[1739284834022,5.315e-05,199.08,199.05,5.023]
[1739284834918,5.315e-05,199.08,199.06,5.0228]
[1739284835319,5.315e-05,199.08,199.04,0.03361469]
[1739284835520,5.315e-05,199.08,199.06,5.0227]
[1739284835923,5.315e-05,199.08,199.05,8.71614613]
[1739284836224,5.315e-05,199.08,199.05,13.73914613]
[1739284836622,5.315e-05,199.08,199.05,8.71614613]
[1739284836924,5.315e-05,199.08,199.07,8.71614613]
[1739284837724,5.315e-05,199.08,199.05,8.71614613]
[1739284838226,5.315e-05,199.08,199.07,5.0226]
[1739284838423,5.315e-05,199.08,199.07,13.73874613]
[1739284840324,8.71614613,199.18,199.07,8.71614613]
[1739284840529,8.71614613,199.18,199.11,8.71614613]
[1739284840730,13.73594613,199.18,199.12,5.0212]
[1739284841027,8.71614613,199.18,199.12,5.0212]
[1739284841427,0.03415825,199.17,199.13,0.03425062]
[1739284842330,0.03415825,199.17,199.16,5.0203]
[1739284844826,5.28633,199.23,199.22,5.0188]
[1739284846326,5.28633,199.23,199.21,0.03669742]
[1739284847831,8.43693,199.23,199.11,13.61024435]
[1739284848031,5.019,199.21,199.13,5.021]
[1739284848239,8.43693,199.23,199.11,13.61024435]
[1739284848636,13.45543,199.23,199.15,5.0203]
[1739284848827,13.45543,199.23,199.11,13.61024435]
[1739284849031,13.45543,199.23,199.17,0.03198313]
[1739284849032,0.03787407,199.21,199.17,0.03198313]
[1739284850734,5.0194,199.2,199.17,0.03198313]
[1739284851131,0.03787407,199.21,199.17,0.03198313]
[1739284852037,5.0193,199.2,199.17,0.03198313]
[1739284852238,0.03787407,199.21,199.17,0.03198313]
[1739284853139,5.0195,199.2,199.17,0.03198313]
[1739284853333,0.03787407,199.21,199.17,0.03198313]
[1739284853728,5.0197,199.19,199.17,0.03198313]
[1739284854140,0.03787407,199.21,199.17,0.03198313]
[1739284854639,5.0193,199.2,199.17,0.03198313]
[1739284855139,0.03787407,199.21,199.17,0.03198313]
[1739284856250,5.0193,199.2,199.17,0.03198313]
[1739284856546,0.03787407,199.21,199.17,0.03198313]
[1739284858348,5.0198,199.18,199.17,0.03198313]
[1739284859239,5.0196,199.19,199.17,0.03198313]
[1739284859947,5.0193,199.2,199.17,0.03198313]
[1739284860148,0.03787407,199.21,199.17,0.03198313]
[1739284860544,5.0194,199.2,199.17,0.03198313]
[1739284860745,0.03787407,199.21,199.17,0.03198313]
[1739284861049,5.0198,199.18,199.17,0.03198313]
[1739284861350,0.03787407,199.21,199.08,13.61024435]
[1739284861548,13.61024435,199.19,199.05,13.61024435]
[1739284861749,5.021,199.14,199.05,13.61024435]
[1739284862147,13.61024435,199.16,199.05,13.61024435]
[1739284862443,5.0216,199.11,199.09,0.03744555]
[1739284862752,0.03721896,199.12,199.09,0.03744555]
[1739284864353,0.03721896,199.12,199.11,5.0215]
[1739284864552,1.896e-05,199.12,199.11,18.63174435]
[1739284864748,1.5093,199.23,199.11,13.61024435]
[1739284864942,5.0191,199.21,199.17,5.02]
[1739284865146,1.5093,199.23,199.15,13.61024435]
[1739284865542,5.0188,199.22,199.17,5.02]
[1739284865946,0.03670306,199.21,199.18,0.03247508]
[1739284866250,0.03670306,199.21,199.2,18.62954435]
[1739284866950,0.03670306,199.21,199.18,5.05197508]
[1739284867149,0.03670306,199.21,199.18,0.03247508]
[1739284867548,0.03670306,199.21,199.18,5.05227508]
[1739284868550,0.03670306,199.21,199.18,0.03247508]
[1739284869051,5.05590306,199.21,199.18,0.03247508]
[1739284871053,0.03670306,199.21,199.18,0.03247508]
[1739284875356,5.05570306,199.21,199.18,0.03247508]
[1739284875953,0.03670306,199.21,199.18,5.05217508]
[1739284876158,0.03670306,199.21,199.18,0.03247508]
[1739284876560,5.05590306,199.21,199.18,0.03247508]
[1739284877161,5.05580306,199.21,199.18,0.03247508]
[1739284878062,0.03670306,199.21,199.18,0.03247508]
[1739284878362,0.03670306,199.21,199.08,13.61024435]
[1739284878562,13.61024435,199.23,199.08,13.61024435]
[1739284878762,5.0198,199.18,199.08,13.61024435]
[1739284879061,13.61024435,199.23,199.08,13.61024435]
[1739284879565,5.05202722,199.17,199.14,0.0328347]
[1739284879759,0.03172722,199.17,199.14,0.0328347]
[1739284880257,5.0212,199.13,199.08,5.0222]
[1739284880462,13.61024435,199.17,199.06,64.26523152]
[1739284881165,5.0213,199.13,199.08,5.0223]
[1739284881463,5.05657715,199.13,199.06,64.26523152]
[1739284881865,0.03527715,199.13,199.02,13.61024435]
[1739284882163,5.0216,199.11,199.02,13.61024435]
[1739284882366,13.61024435,199.17,199.02,13.61024435]
[1739284882565,0.03475123,199.08,199.02,13.61024435]
[1739284883063,0.03475123,199.08,199.07,13.61024435]
[1739284883362,0.03475123,199.08,199.07,18.63284435]
[1739284883664,5.123e-05,199.08,199.07,18.63284435]
[1739284885663,4.4762,199.19,199.07,13.61024435]
[1739284885867,5.0202,199.17,199.12,5.0211]
[1739284886261,5.0198,199.18,199.12,5.0211]
[1739284886877,0.03464254,199.17,199.13,0.03721238]
[1739284888067,0.03464254,199.17,199.13,5.05821238]
[1739284888871,0.03464254,199.17,199.15,5.0205]
[1739284889070,0.03464254,199.17,199.13,0.03721238]
[1739284889473,0.03464254,199.17,199.15,5.0203]
[1739284889672,0.03464254,199.17,199.13,0.03721238]
[1739284890074,0.03464254,199.17,199.13,5.05801238]
[1739284890669,0.03464254,199.17,199.13,0.03721238]
[1739284891876,5.0205,199.16,199.13,0.03721238]
[1739284892078,0.03464254,199.17,199.13,0.03721238]
[1739284892276,13.64488689,199.17,199.02,13.61024435]
[1739284892476,13.61024435,199.17,199.09,5.022]
[1739284892875,13.61024435,199.17,199.05,13.61024435]
[1739284893177,13.61024435,199.17,199.02,13.61024435]
[1739284893178,4.4762,199.19,199.08,13.61024435]
[1739284893378,0.03569507,199.13,199.12,5.0213]
[1739284893574,4.4762,199.19,199.08,13.61024435]
[1739284893777,0.03430209,199.14,199.08,13.61024435]
[1739284895877,0.03430209,199.14,199.1,5.0217]
[1739284896976,5.05530209,199.14,199.09,5.022]
[1739284897279,0.03430209,199.14,199.08,13.61024435]
[1739284897679,5.05530209,199.14,199.09,5.022]
[1739284898382,5.0213,199.12,199.08,5.0223]
[1739284898681,0.03430209,199.14,199.02,13.61024435]
[1739284898871,5.022,199.1,199.02,13.61024435]
[1739284899073,5.05537091,199.1,199.05,5.0229]
[1739284899273,5.05537091,199.1,199.02,13.61024435]
[1739284899583,0.03337091,199.1,199.06,5.0228]
[1739284900982,0.03337091,199.1,199.02,13.61024435]
[1739284901183,0.03337091,199.1,199.07,5.0225]
[1739284901384,0.03337091,199.1,199.02,13.61024435]
[1739284901683,0.03337091,199.1,199.06,5.0227]
[1739284901881,5.05517091,199.1,199.02,13.61024435]
[1739284902182,0.03337091,199.1,199.07,5.0223]
[1739284902881,0.03337091,199.1,199.02,13.61024435]
[1739284903181,0.03337091,199.1,198.99,13.61024435]
[1739284903377,13.61024435,199.14,198.99,13.61024435]
[1739284903580,0.03164415,199.06,198.99,13.61024435]
[1739284904482,0.03164415,199.06,199.02,13.61024435]
[1739284905387,0.03164415,199.06,199.05,5.0231]
[1739284905686,0.03164415,199.06,199.02,13.61024435]
[1739284906078,0.03164415,199.06,199.05,5.0231]
[1739284906485,0.03164415,199.06,199.05,18.63334435]
[1739284907888,4.4762,199.19,199.05,13.61024435]
[1739284908083,5.0206,199.15,199.1,5.0216]
[1739284908387,4.4762,199.19,199.09,13.61024435]
[1739284908788,5.0207,199.15,199.1,5.0217]
[1739284909088,0.03269177,199.14,199.11,0.03698188]
[1739284909383,0.03269177,199.14,199.11,5.05848188]
[1739284909690,0.03269177,199.14,199.11,0.03698188]
[1739284909888,0.03269177,199.14,199.12,5.0213]
[1739284910186,0.03269177,199.14,199.11,0.03698188]
[1739284910987,5.0212,199.13,199.11,0.03698188]
[1739284911189,0.03269177,199.14,199.11,0.03698188]
[1739284912291,0.03269177,199.14,199.12,5.0213]
[1739284912591,0.03269177,199.14,199.11,0.03698188]
[1739284912791,5.05359177,199.14,199.11,5.05838188]
[1739284912992,0.03269177,199.14,199.11,5.05838188]
[1739284913289,5.05349177,199.14,199.11,5.05838188]
[1739284914791,0.03269177,199.14,199.11,0.03698188]
[1739284915590,5.021,199.13,199.11,0.03698188]
[1739284915790,0.03269177,199.14,199.11,0.03698188]
[1739284916191,5.021,199.13,199.11,0.03698188]
[1739284917592,5.0213,199.12,199.11,0.03698188]
[1739284918094,5.0211,199.13,199.11,0.03698188]
[1739284919495,5.0213,199.12,199.11,0.03698188]
[1739284921492,0.03269177,199.14,199.02,13.61024435]
[1739284921790,13.61024435,199.14,199.02,13.61024435]
[1739284922694,5.0228,199.07,199.03,5.0233]
[1739284922896,0.03172038,199.1,199.02,13.61024435]
[1739284923795,5.05352038,199.1,199.06,5.0226]
[1739284923997,0.03172038,199.1,199.06,5.0226]
[1739284924598,5.05362038,199.1,199.06,5.0226]
[1739284925490,0.03172038,199.1,199.02,13.61024435]
[1739284925692,0.03172038,199.1,199.08,13.61024435]
[1739284925896,0.03172038,199.1,199.09,5.022]
[1739284928499,0.03172038,199.1,199.08,18.63254435]
[1739284929001,0.03172038,199.1,199.07,5.0225]
[1739284929192,0.03172038,199.1,199.05,13.61024435]
[1739284929591,0.03172038,199.1,199.08,5.0221]
[1739284930499,0.03172038,199.1,199.07,5.0225]
[1739284931200,0.03172038,199.1,199.08,5.0223]
[1739284931398,0.03172038,199.1,199.08,13.61024435]
[1739284931699,0.03172038,199.1,199.09,8.71153163]
[1739284931899,4.4762,199.19,199.09,8.71153163]
[1739284932092,4.4762,199.19,199.01,10.0481]
[1739284932093,4.4762,199.19,199.16,8.71153163]
[1739284932298,5.0199,199.18,199.16,8.71153163]
[1739284932499,4.4762,199.19,199.14,8.71153163]
[1739284933002,0.032999,199.18,199.15,0.03327622]
[1739284933402,5.0202,199.17,199.15,0.03327622]
[1739284933998,0.032999,199.18,199.15,0.03327622]
[1739284934303,0.032999,199.18,199.15,5.05377622]
[1739284934502,0.032999,199.18,199.15,0.03327622]
[1739284934898,0.032999,199.18,199.16,5.0201]
[1739284935196,0.032999,199.18,199.15,0.03327622]
[1739284936197,0.032999,199.18,199.15,5.05377622]
[1739284937202,0.032999,199.18,199.15,0.03327622]
[1739284937900,0.032999,199.18,199.15,5.05357622]
[1739284938402,0.032999,199.18,199.15,0.03327622]
[1739284938603,0.032999,199.18,199.16,5.0203]
[1739284938907,0.032999,199.18,199.15,0.03327622]
[1739284939105,5.0178,199.26,199.2,5.0191]
[1739284939297,12.0409,199.29,199.19,13.6091367]
[1739284939504,25.6500367,199.29,199.16,13.6091367]
[1739284940203,5.05589671,199.24,199.21,0.03469871]
[1739284940400,0.03749671,199.24,199.21,0.03469871]
[1739284941901,5.0188,199.22,199.21,0.03469871]
[1739284943007,0.03749671,199.24,199.23,5.0185]
[1739284943502,5.05579671,199.24,199.21,5.05349871]
[1739284943707,0.03749671,199.24,199.21,5.05349871]
[1739284943907,0.03749671,199.24,199.21,0.03469871]
[1739284944106,0.03749671,199.24,199.23,5.0185]
[1739284944605,0.03749671,199.24,199.21,0.03469871]
[1739284945302,5.0188,199.22,199.21,0.03469871]
[1739284948905,5.0199,199.18,199.15,5.0205]
[1739284949111,1.6017,199.22,199.13,13.6091367]
[1739284950010,0.03379117,199.19,199.16,0.03157651]
[1739284950612,5.02,199.17,199.16,0.03157651]
[1739284953321,5.0198,199.18,199.16,0.03157651]
[1739284954019,5.05359117,199.19,199.16,0.03157651]
[1739284954512,5.02,199.17,199.16,0.03157651]
[1739284955113,5.0198,199.18,199.16,0.03157651]
[1739284956720,5.02,199.17,199.16,0.03157651]
[1739284957220,0.03379117,199.19,199.16,0.03157651]
[1739284957422,5.05359117,199.19,199.16,0.03157651]
[1739284957722,0.03379117,199.19,199.16,0.03157651]
[1739284958425,5.0206,199.15,199.07,271.87479427]
[1739284958622,5.0206,199.15,199.07,77.87479427]
[1739284959121,15.1940367,199.21,199.07,77.87479427]
[1739284959521,0.03240793,199.16,199.12,5.0212]
[1739284959821,5.05290793,199.16,199.12,5.0212]
[1739284960016,0.03240793,199.16,199.13,5.0209]
[1739284960217,0.03240793,199.16,199.1,13.6091367]
[1739284960521,0.03240793,199.16,199.15,5.0205]
[1739284964515,0.03240793,199.16,199.1,13.6091367]
[1739284964815,0.03240793,199.16,199.07,13.6091367]
[1739284965014,5.021,199.14,199.07,13.6091367]
[1739284965820,5.0211,199.13,199.07,13.6091367]
[1739284966221,0.03650482,199.12,199.1,13.6091367]
[1739284966422,5.0201,199.17,199.1,13.6091367]
[1739284966619,0.03397565,199.13,199.1,13.6091367]
[1739284966825,13.6091367,199.25,199.11,5.0213]
[1739284967022,0.03162835,199.13,199.11,5.0213]
[1739284967224,13.6091367,199.22,199.1,13.6091367]
[1739284967725,5.05262405,199.18,199.13,5.0209]
[1739284967923,0.03282405,199.18,199.1,13.6091367]
[1739284968119,0.03282405,199.18,199.13,13.6091367]
[1739284968326,83.34191572,199.25,199.16,13.6091367]
[1739284968524,0.03739298,199.17,199.16,13.6091367]
[1739284968726,83.34191572,199.25,199.16,13.6091367]
[1739284968922,83.34191572,199.28,199.2,13.6091367]
[1739284969117,83.34191572,199.28,199.23,13.6091367]
[1739284969426,83.34191572,199.28,199.25,5.018]
[1739284969925,83.37514082,199.28,199.25,5.05029159]
[1739284970125,83.37514082,199.28,199.26,5.0178]
[1739284971022,83.37514082,199.28,199.25,0.03229159]
[1739284971623,0.0332251,199.28,199.25,0.03229159]
[1739284972931,5.0505251,199.28,199.25,0.03229159]
[1739284973830,5.0176,199.27,199.25,0.03229159]
[1739284974427,5.0178,199.26,199.25,0.03229159]
[1739284978333,5.0505251,199.28,199.25,0.03229159]
[1739284978533,0.0332251,199.28,199.25,0.03229159]
[1739284978932,0.0332251,199.28,199.26,5.0177]
[1739284979937,0.0332251,199.28,199.25,0.03229159]
[1739284980935,5.0178,199.26,199.25,0.03229159]
[1739284981631,5.0177,199.27,199.25,0.03229159]
[1739284981831,0.0332251,199.28,199.25,0.03229159]
[1739284982433,5.0175,199.27,199.25,0.03229159]
[1739284982934,5.0178,199.26,199.25,0.03229159]
[1739284983332,13.6423618,199.28,199.17,13.6091367]
[1739284983528,1.5936,199.28,199.17,13.6091367]
[1739284983735,15.2027367,199.28,199.19,5.0194]
[1739284984633,5.019,199.22,199.19,5.0194]
[1739284984835,0.03593024,199.25,199.14,13.6091367]
[1739284985131,15.2027367,199.28,199.14,13.6091367]
[1739284985435,0.03737213,199.21,199.14,13.6091367]
[1739284985839,0.03737213,199.21,199.2,5.0193]
[1739284986530,0.03737213,199.21,199.2,18.6284367]
[1739284986834,10.4648,199.29,199.2,13.6091367]
[1739284987225,10.4648,199.29,199.23,5.0183]
[1739284987640,5.0176,199.27,199.23,5.0183]
[1739284987836,5.0176,199.27,199.24,5.05540898]
[1739284988335,0.0366808,199.28,199.24,5.05540898]
[1739284988336,5.0539808,199.28,199.24,5.05540898]
[1739284988732,0.0366808,199.28,199.24,0.03720898]
[1739284990738,5.0539808,199.28,199.24,5.05520898]
[1739284990937,5.0539808,199.28,199.24,0.03720898]
[1739284991327,0.0366808,199.28,199.24,0.03720898]
[1739284991532,0.0366808,199.28,199.25,5.0178]
[1739284992739,5.0541808,199.28,199.24,5.05540898]
[1739284992938,0.0366808,199.28,199.24,0.03720898]
[1739284993540,5.0176,199.27,199.24,0.03720898]
[1739284993837,0.0366808,199.28,199.24,0.03720898]
[1739284994231,5.0176,199.27,199.24,5.05540898]
[1739284994436,0.0366808,199.28,199.24,0.03720898]
[1739284994840,5.0539808,199.28,199.25,5.0178]
[1739284995238,0.0366808,199.28,199.24,0.03720898]
[1739284996438,5.0179,199.26,199.24,0.03720898]
[1739284996640,0.0366808,199.28,199.17,13.6091367]
[1739284996842,13.6091367,199.25,199.11,13.8893367]
[1739284997344,13.6091367,199.25,199.17,5.0199]
[1739284997545,13.6091367,199.25,199.11,13.8893367]
[1739284997546,1.6012,199.24,199.11,13.8893367]
[1739284997941,0.03267825,199.19,199.11,13.8893367]
[1739284998442,0.03267825,199.19,199.18,5.0198]
[1739284999345,5.0177,199.27,199.23,5.0185]
[1739285000240,12.066,199.29,199.2,13.6091367]
[1739285000743,0.0326083,199.26,199.23,0.03505076]
[1739285001745,0.0326083,199.26,199.23,5.05355076]
[1739285001940,0.0326083,199.26,199.23,0.03505076]
[1739285005747,0.0326083,199.26,199.23,5.05355076]
[1739285006850,0.0326083,199.26,199.23,0.03505076]
[1739285007050,0.0326083,199.26,199.24,5.0183]
[1739285007251,0.0326083,199.26,199.23,0.03505076]
[1739285007552,0.0326083,199.26,199.24,5.0183]
[1739285008055,0.0326083,199.26,199.25,5.018]
[1739285015844,0.0326083,199.26,199.23,13.64418746]
[1739285016953,0.0326083,199.26,199.23,0.03505076]
[1739285017954,5.0505083,199.26,199.23,0.03505076]
[1739285018255,0.0326083,199.26,199.23,0.03505076]
[1739285018450,0.0326083,199.26,199.25,5.018]
[1739285018650,0.0326083,199.26,199.23,0.03505076]
[1739285019250,0.0326083,199.26,199.24,5.0182]
[1739285020258,0.0326083,199.26,199.23,0.03505076]
[1739285021055,5.0182,199.25,199.23,0.03505076]
[1739285022953,0.0326083,199.26,199.23,0.03505076]
[1739285023755,5.0504083,199.26,199.23,0.03505076]
[1739285023949,0.0326083,199.26,199.23,0.03505076]
[1739285024457,0.0326083,199.26,199.23,5.05335076]
[1739285024848,0.0326083,199.26,199.23,0.03505076]
[1739285025049,0.0326083,199.26,199.24,5.0182]
[1739285025349,0.0326083,199.26,199.23,0.03505076]
[1739285025549,0.0326083,199.26,199.23,13.64418746]
[1739285025758,0.0326083,199.26,199.25,5.018]
[1739285035566,0.0326083,199.26,199.25,13.71782258]
[1739285035956,10.4648,199.29,199.25,8.69982258]
[1739285036160,10.4648,199.29,199.28,13.71712258]
[1739285037563,10.4648,199.29,199.28,18.60331642]
[1739285037958,10.2193,199.29,199.28,18.60331642]
[1739285038161,5.0155,199.35,199.3,5.0165]
[1739285038966,5.0157,199.35,199.3,5.0165]
[1739285039165,0.03662706,199.34,199.31,0.03425074]
[1739285039368,0.03662706,199.34,199.31,13.62026716]
[1739285039558,88.35611572,199.41,199.31,13.62026716]
[1739285039763,83.34191572,199.41,199.34,13.58601642]
[1739285039963,5.0144,199.4,199.35,5.0153]
[1739285040560,5.0144,199.4,199.36,0.03322981]
[1739285040761,0.03684637,199.39,199.31,13.58601642]
[1739285040965,83.34191572,199.41,199.31,13.58601642]
[1739285041374,5.0144,199.4,199.31,13.58601642]
[1739285041671,3.1715,199.43,199.34,13.58601642]
[1739285042069,0.03669561,199.4,199.37,5.05273231]
[1739285042469,0.03669561,199.4,199.38,13.58601642]
[1739285042673,0.03669561,199.4,199.39,5.0145]
[1739285042869,0.03669561,199.4,199.38,13.58601642]
[1739285043066,0.03669561,199.4,199.37,0.03783231]
[1739285043273,0.03669561,199.4,199.37,5.05283231]
[1739285043976,0.03669561,199.4,199.39,5.0145]
[1739285044179,0.03669561,199.4,199.38,13.58601642]
[1739285044374,0.03669561,199.4,199.37,0.03783231]
[1739285046575,0.03669561,199.4,199.37,5.05283231]
[1739285046776,0.03669561,199.4,199.37,0.03783231]
[1739285047780,5.05099561,199.4,199.37,0.03783231]
[1739285048377,0.03669561,199.4,199.37,0.03783231]
[1739285049479,0.03669561,199.4,199.37,5.05273231]
[1739285050680,0.03669561,199.4,199.37,0.03783231]
[1739285050890,5.0152,199.37,199.29,13.58601642]
[1739285051087,1.6152,199.39,199.32,5.0162]
[1739285051287,1.5038,199.38,199.29,13.58601642]
[1739285051585,1.5038,199.38,199.26,13.58601642]
[1739285051984,5.0153,199.36,199.29,13.58601642]
[1739285052185,0.03379068,199.34,199.3,0.03717348]
[1739285052690,0.03379068,199.34,199.31,5.0165]
[1739285052885,0.03379068,199.34,199.3,0.03717348]
[1739285053790,0.03379068,199.34,199.31,5.0165]
[1739285054189,0.03379068,199.34,199.32,13.58601642]
[1739285054392,0.03379068,199.34,199.33,5.016]
[1739285055090,0.03379068,199.34,199.32,18.60221642]
[1739285055290,0.03379068,199.34,199.32,13.58601642]
[1739285055692,0.03379068,199.34,199.33,5.016]
[1739285059092,1.5893,199.46,199.38,5.0148]
[1739285059298,8.2318,199.45,199.37,13.58601642]
[1739285059498,3.2186,199.45,199.37,13.58601642]
[1739285059792,3.2186,199.45,199.38,5.0147]
[1739285060191,3.2186,199.45,199.4,0.03674306]
[1739285060495,0.03737931,199.43,199.4,0.03674306]
[1739285060892,5.014,199.42,199.4,0.03674306]
[1739285061088,0.03737931,199.43,199.4,0.03674306]
[1739285061297,0.03737931,199.43,199.4,13.62275948]
[1739285062396,0.03737931,199.43,199.42,5.0137]
[1739285066797,0.03737931,199.43,199.41,5.014]
[1739285067298,0.03737931,199.43,199.4,0.03674306]
[1739285067994,5.05087931,199.43,199.4,0.03674306]
[1739285068299,0.03737931,199.43,199.4,13.62275948]
[1739285068691,0.03737931,199.43,199.41,5.014]
[1739285068999,0.03737931,199.43,199.4,13.62275948]
[1739285069199,0.03737931,199.43,199.42,5.0137]
[1739285070099,4.6709,199.52,199.47,5.0123]